{"text_format":"3","workbook":"xlsx","n_sheets":4,"sheets":["Inizio","Spese","Ricavi","Riepilogo profitti - perdite"],"not_rendered":{"charts":1},"read":"whole","date_system":"1900"}

{"sheet":"Inizio","index":0,"n_rows":8,"n_cols":2,"rows_kept":8}
[null,"INFORMAZIONI SU QUESTO MODELLO"]
[null,"Questa cartella di lavoro Budget evento consente di tenere traccia delle spese sostenute e dei ricavi ottenuti da un evento."]
[null,"Immettere il nome dell'evento e i dettagli nelle tabelle nei fogli di lavoro Uscite ed Entrate."]
[null,"Il totale uscite e il totale entrate vengono calcolati automaticamente."]
[null,"Il riepilogo e il grafico dei profitti e delle perdite vengono aggiornati automaticamente nel foglio di lavoro Riepilogo profitti-perdite."]
[null,"Nota: "]
[null,"Nella colonna A di ciascun foglio di lavoro sono disponibili altre istruzioni. Questo testo è stato nascosto intenzionalmente. Per rimuovere il testo, selezionare la colonna A, quindi scegliere ELIMINA. Per visualizzare il testo, selezionare la colonna A, quindi modificare il colore del carattere."]
[null,"Per altre informazioni sulle tabelle, premere MAIUSC, quindi F10 in una tabella, selezionare l'opzione TABELLA, quindi selezionare TESTO ALTERNATIVO."]

{"sheet":"Spese","index":1,"n_rows":32,"n_cols":8,"rows_kept":32,"merged":[[0,1,0,4],[2,1,3,1]]}
["Immettere le spese stimate ed effettive per ogni categoria nelle rispettive tabelle in questo foglio di lavoro e il nome dell'evento nella cella D1 per personalizzare il titolo di questo e altri fogli di lavoro. Il sottotitolo di questo foglio di lavoro si trova nella cella H1. Nelle celle di questa colonna sono disponibili istruzioni utili per l'uso di questo foglio di lavoro. L'istruzione successiva si trova nella cella A3.","Budget evento per Nome evento",{"$nulls":5},"USCITE"]
[]
["L'etichetta Totale uscite si trova nella cella a destra, l'etichetta Stimate nella cella G3 e l'etichetta Effettive in H3.","TOTALE USCITE",{"$nulls":4},"Stimate","Effettive"]
["Il totale delle uscite stimate nella cella G4 e il totale delle uscite effettive nella cella H4 vengono calcolati automaticamente. L'istruzione successiva si trova nella cella A6.",{"$nulls":5},{"$f":"SUM(C11,C19,C25,C32,G11,G19,G24)","v":{"v":882,"d":"€ 882.00"}},{"$f":"SUM(D11,D19,D25,D32,H11,H19,H24)","v":{"v":333,"d":"€ 333.00"}}]
[]
["Immettere le spese relative al sito nella tabella a partire dalla cella a destra e le spese per i rinfreschi nella tabella a partire dalla cella F6. L'istruzione successiva si trova nella cella A13.","Sito","Stimate","Effettive",null,"Rinfresco","Stimate","Effettive"]
[null,"Spese per sala e hall",{"v":500,"d":"€ 500.00"},null,null,"Cibo"]
[null,"Personale del sito",{"$nulls":3},"Bevande",{"v":20,"d":"€ 20.00"}]
[null,"Apparecchiature",{"$nulls":3},"Biancheria da tavola",null,{"v":20,"d":"€ 20.00"}]
[null,"Tavoli e sedie",{"$nulls":3},"Personale e mance"]
[null,"Totale",{"$f":"SUBTOTAL(109,SpeseRelativeAlSito[Stimate])","v":{"v":500,"d":"€ 500.00"}},{"$f":"SUBTOTAL(109,SpeseRelativeAlSito[Effettive])","v":{"v":0,"d":"€ 0.00"}},null,"Totale",{"$f":"SUBTOTAL(109,SpesePerIRinfreschi[Stimate])","v":{"v":20,"d":"€ 20.00"}},{"$f":"SUBTOTAL(109,SpesePerIRinfreschi[Effettive])","v":{"v":20,"d":"€ 20.00"}}]
[]
["Immettere le spese relative alle decorazioni nella tabella a partire dalla cella a destra e le spese per il programma nella tabella a partire dalla cella F13. L'istruzione successiva si trova nella cella A21.","Decorazioni","Stimate","Effettive",null,"Programma","Stimate","Effettive"]
[null,"Fiori",{"v":200,"d":"€ 200.00"},{"v":300,"d":"€ 300.00"},null,"Musicisti"]
[null,"Candele",{"$nulls":3},"Relatori",{"v":30,"d":"€ 30.00"}]
[null,"Illuminazione",{"$nulls":3},"Viaggio"]
[null,"Palloncini",{"$nulls":3},"Hotel"]
[null,"Forniture carta",{"$nulls":3},"Altro"]
[null,"Totale",{"$f":"SUBTOTAL(109,SpeseRelativeAlleDecorazioni[Stimate])","v":{"v":200,"d":"€ 200.00"}},{"$f":"SUBTOTAL(109,SpeseRelativeAlleDecorazioni[Effettive])","v":{"v":300,"d":"€ 300.00"}},null,"Totale",{"$f":"SUBTOTAL(109,SpesePerIlProgramma[Stimate])","v":{"v":30,"d":"€ 30.00"}},{"$f":"SUBTOTAL(109,SpesePerIlProgramma[Effettive])","v":{"v":0,"d":"€ 0.00"}}]
[]
["Immettere le spese relative alla pubblicità nella tabella a partire dalla cella a destra e le spese per i premi nella tabella a partire dalla cella F21. L'istruzione successiva si trova nella cella A27","Pubblicità","Stimate","Effettive",null,"Premi","Stimate","Effettive"]
[null,"Grafica",{"$nulls":3},"Nastri/targhe/coppe"]
[null,"Fotocopie/stampa",{"v":20,"d":"€ 20.00"},null,null,"Regali",{"v":100,"d":"€ 100.00"}]
[null,"Affrancatura",{"$nulls":3},"Totale",{"$f":"SUBTOTAL(109,SpesePerIPremi[Stimate])","v":{"v":100,"d":"€ 100.00"}},{"$f":"SUBTOTAL(109,SpesePerIPremi[Effettive])","v":{"v":0,"d":"€ 0.00"}}]
[null,"Totale",{"$f":"SUBTOTAL(109,SpeseRelativeAllaPubblicità[Stimate])","v":{"v":20,"d":"€ 20.00"}},{"$f":"SUBTOTAL(109,SpeseRelativeAllaPubblicità[Effettive])","v":{"v":0,"d":"€ 0.00"}}]
[]
["Immettere le spese varie nella tabella a partire dalla cella a destra.","Varie","Stimate","Effettive"]
[null,"Telefono",null,{"v":13,"d":"€ 13.00"}]
[null,"Trasporti",{"v":12,"d":"€ 12.00"}]
[null,"Cancelleria"]
[null,"Servizi fax"]
[null,"Totale",{"$f":"SUBTOTAL(109,SpeseVarie[Stimate])","v":{"v":12,"d":"€ 12.00"}},{"$f":"SUBTOTAL(109,SpeseVarie[Effettive])","v":{"v":13,"d":"€ 13.00"}}]

{"sheet":"Ricavi","index":2,"n_rows":29,"n_cols":7,"rows_kept":29,"merged":[[0,1,0,3],[2,1,3,1]]}
["Immettere le entrate stimate ed effettive per ogni categoria nelle rispettive tabelle in questo foglio di lavoro. Il titolo di questo foglio di lavoro viene aggiornato automaticamente nelle celle a destra. Il sottotitolo si trova nella cella G1. Nelle celle di questa colonna sono disponibili istruzioni utili per l'uso di questo foglio di lavoro. L'istruzione successiva si trova nella cella A3.",{"$f":"Spese!B1","v":"Budget evento per Nome evento"},{"$nulls":4},"ENTRATE"]
[]
["L'etichetta Totale entrate si trova nella cella a destra, l'etichetta Stimate nella cella F3 e l'etichetta Effettive in G3.","TOTALE ENTRATE",{"$nulls":3},"Stimate","Effettive"]
["Il totale delle entrate stimate viene calcolato automaticamente nella cella F4 e il totale delle entrate effettive in G4.",{"$nulls":4},{"$f":"SUM(Ingressi[[#Totals],[Entrate stimate]],AnnunciInProgramma[[#Totals],[Entrate stimate]],EspositoriFornitori[[#Totals],[Entrate stimate]],VenditaDiArticoli[[#Totals],[Entrate stimate]])","v":{"v":1936,"d":"€ 1,936.00"}},{"$f":"SUM(Ingressi[[#Totals],[Entrate effettive]],AnnunciInProgramma[[#Totals],[Entrate effettive]],EspositoriFornitori[[#Totals],[Entrate effettive]],VenditaDiArticoli[[#Totals],[Entrate effettive]])","v":{"v":1831,"d":"€ 1,831.00"}}]
["L'etichetta Ingressi si trova nella cella a destra.","INGRESSI"]
["Immettere il numero stimato ed effettivo di ingressi con i costi dei biglietti nella tabella a partire dalla cella a destra. Le entrate stimate ed effettive derivanti dagli ingressi vengono calcolate automaticamente. L'istruzione successiva si trova nella cella A11.","N. stimato","N. effettivo","Tipo","Prezzo","Entrate stimate","Entrate effettive"]
[null,300,278,"Adulti",{"v":5,"d":"€ 5.00"},{"$f":"B7*E7","v":{"v":1500,"d":"€ 1,500.00"}},{"$f":"C7*E7","v":{"v":1390,"d":"€ 1,390.00"}}]
[null,197,195,"Bambini",{"v":2,"d":"€ 2.00"},{"$f":"B8*E8","v":{"v":394,"d":"€ 394.00"}},{"$f":"C8*E8","v":{"v":390,"d":"€ 390.00"}}]
[null,42,51,"Altro",{"v":1,"d":"€ 1.00"},{"$f":"B9*E9","v":{"v":42,"d":"€ 42.00"}},{"$f":"C9*E9","v":{"v":51,"d":"€ 51.00"}}]
[null,"Totale",{"$nulls":3},{"$f":"SUBTOTAL(109,Ingressi[Entrate stimate])","v":{"v":1936,"d":"€ 1,936.00"}},{"$f":"SUBTOTAL(109,Ingressi[Entrate effettive])","v":{"v":1831,"d":"€ 1,831.00"}}]
["L'etichetta Annunci in programma si trova nella cella a destra.","ANNUNCI IN PROGRAMMA"]
["Immettere il numero stimato ed effettivo di annunci in programma con le relative tariffe nella tabella a partire dalla cella a destra. Le entrate stimate ed effettive derivanti dagli annunci vengono calcolate automaticamente. L'istruzione successiva si trova nella cella A17.","N. stimato","N. effettivo","Tipo","Prezzo","Entrate stimate","Entrate effettive"]
[null,12,null,"Copertine",null,{"$f":"B13*E13","v":{"v":0,"d":"€ 0.00"}},{"$f":"C13*E13","v":{"v":0,"d":"€ 0.00"}}]
[null,null,158,"Mezze pagine",null,{"$f":"B14*E14","v":{"v":0,"d":"€ 0.00"}},{"$f":"C14*E14","v":{"v":0,"d":"€ 0.00"}}]
[null,4,null,"Quarti di pagina",null,{"$f":"B15*E15","v":{"v":0,"d":"€ 0.00"}},{"$f":"C15*E15","v":{"v":0,"d":"€ 0.00"}}]
[null,"Totale",{"$nulls":3},{"$f":"SUBTOTAL(109,AnnunciInProgramma[Entrate stimate])","v":{"v":0,"d":"€ 0.00"}},{"$f":"SUBTOTAL(109,AnnunciInProgramma[Entrate effettive])","v":{"v":0,"d":"€ 0.00"}}]
["L'etichetta Espositori/fornitori si trova nella cella a destra.","ESPOSITORI/FORNITORI"]
["Immettere il numero stimato ed effettivo di espositori o fornitori con le tariffe degli stand nella tabella a partire dalla cella a destra. Le entrate stimate ed effettive vengono calcolate automaticamente. L'istruzione successiva si trova nella cella A23.","N. stimato","N. effettivo","Tipo","Prezzo","Entrate stimate","Entrate effettive"]
[null,23,null,"Stand grandi",null,{"$f":"B19*E19","v":{"v":0,"d":"€ 0.00"}},{"$f":"C19*E19","v":{"v":0,"d":"€ 0.00"}}]
[null,354,null,"Stand medi",null,{"$f":"B20*E20","v":{"v":0,"d":"€ 0.00"}},{"$f":"C20*E20","v":{"v":0,"d":"€ 0.00"}}]
[null,56,null,"Stand piccoli",null,{"$f":"B21*E21","v":{"v":0,"d":"€ 0.00"}},{"$f":"C21*E21","v":{"v":0,"d":"€ 0.00"}}]
[null,"Totale",{"$nulls":3},{"$f":"SUBTOTAL(109,EspositoriFornitori[Entrate stimate])","v":{"v":0,"d":"€ 0.00"}},{"$f":"SUBTOTAL(109,EspositoriFornitori[Entrate effettive])","v":{"v":0,"d":"€ 0.00"}}]
["L'etichetta Vendita di articoli si trova nella cella a destra.","VENDITA DI ARTICOLI"]
["Immettere il numero stimato ed effettivo di articoli venduti con i rispettivi prezzi nella tabella a partire dalla cella a destra. Le entrate stimate ed effettive vengono calcolate automaticamente.","N. stimato","N. effettivo","Tipo","Prezzo","Entrate stimate","Entrate effettive"]
[{"$nulls":3},"Articolo",null,{"$f":"B25*E25","v":{"v":0,"d":"€ 0.00"}},{"$f":"C25*E25","v":{"v":0,"d":"€ 0.00"}}]
[null,123,null,"Articolo",null,{"$f":"B26*E26","v":{"v":0,"d":"€ 0.00"}},{"$f":"C26*E26","v":{"v":0,"d":"€ 0.00"}}]
[{"$nulls":3},"Articolo",null,{"$f":"B27*E27","v":{"v":0,"d":"€ 0.00"}},{"$f":"C27*E27","v":{"v":0,"d":"€ 0.00"}}]
[null,13,null,"Articolo",null,{"$f":"B28*E28","v":{"v":0,"d":"€ 0.00"}},{"$f":"C28*E28","v":{"v":0,"d":"€ 0.00"}}]
[null,"Totale",{"$nulls":3},{"$f":"SUBTOTAL(109,VenditaDiArticoli[Entrate stimate])","v":{"v":0,"d":"€ 0.00"}},{"$f":"SUBTOTAL(109,VenditaDiArticoli[Entrate effettive])","v":{"v":0,"d":"€ 0.00"}}]

{"sheet":"Riepilogo profitti - perdite","index":3,"n_rows":8,"n_cols":7,"rows_kept":8,"merged":[[0,1,0,3],[2,4,11,6]]}
["Il riepilogo e il grafico dei profitti e delle perdite che mostra il totale delle entrate e delle uscite vengono creati automaticamente in questo foglio di lavoro. Il titolo di questo foglio di lavoro viene aggiornato automaticamente nelle celle a destra. Il sottotitolo si trova nelle celle G1 e G2. Nelle celle di questa colonna sono disponibili istruzioni utili per l'uso di questo foglio di lavoro. L'istruzione successiva si trova nella cella A3.",{"$f":"Spese!B1","v":"Budget evento per Nome evento"},{"$nulls":4},"RIEPILOGO "]
[{"$nulls":6},"profitti-perdite"]
["Il grafico a barre che confronta le entrate e le uscite stimate ed effettive si trova nella cella E3.",{"$nulls":3},"Il grafico a barre che mostra il confronto tra ricavi e costi stimati e ricavi e costi effettivi si trova in questa cella."]
["La tabella di riepilogo che inizia nella cella a destra si aggiorna automaticamente. L'istruzione successiva si trova nella cella A8."," Totale","Stimate","Effettive"]
[null,"Totale entrate",{"$f":"Ricavi!F4","v":{"v":1936,"d":"€ 1,936.00"}},{"$f":"Ricavi!G4","v":{"v":1831,"d":"€ 1,831.00"}}]
[null,"Totale uscite",{"$f":"Spese!G4","v":{"v":882,"d":"€ 882.00"}},{"$f":"Spese!H4","v":{"v":333,"d":"€ 333.00"}}]
[]
["Il totale stimato dei profitti o delle perdite viene calcolato automaticamente nella cella C8 e il totale effettivo dei profitti o delle perdite nella cella D8.","Totale profitto              (o perdita)",{"$f":"C5-C6","v":{"v":1054,"d":"€ 1,054.00"}},{"$f":"D5-D6","v":{"v":1498,"d":"€ 1,498.00"}}]